lending/lending_fUSD_20250114
["ID","MTS","AMOUNT","RATE_DAILY","PERIOD"]
[348917721,1736872282333,-500.0,0.00013253,2]
[348917722,1736872282342,-1034.71,0.00013253,2]
[348917723,1736872282353,-856.72,0.00013253,2]
[348917724,1736872282362,-729.65,0.00013253,2]
[348917725,1736872282372,-807.27,0.00013253,2]
[348917726,1736872282385,-1242.21,0.00013253,2]
[348917727,1736872282400,-500.0,0.00013253,2]
[348917728,1736872282409,-1062.24,0.00013253,2]
[348917729,1736872282419,-942.52,0.00013253,2]
[348917730,1736872282429,-570.32,0.00013253,2]
[348917731,1736872282439,-957.09,0.00013253,2]
[348917732,1736872282448,-500.0,0.00013253,2]
[348917733,1736872282458,-500.0,0.00013253,2]
[348917734,1736872282467,-693.23,0.00013253,2]
[348917735,1736872282478,-3653.54,0.00013253,2]
[348917736,1736872282488,-583.72,0.00013253,2]
[348917737,1736872282497,-203.04561331,0.00013253,2]
[348917738,1736872282507,-1575.62,0.00013253,2]
[348917739,1736872282516,-500.0,0.00013253,2]
[348917740,1736872282526,-3284.13,0.00013253,2]
[348917741,1736872282536,-1170.16,0.00013253,2]
[348917742,1736872282546,-10132.63,0.00013253,2]
[348917743,1736872282557,-775.45,0.00013253,2]
[348917744,1736872282569,-500.0,0.00013253,2]
[348917745,1736872282578,-1128.07,0.00013253,2]
[348917746,1736872282587,-500.0,0.00013253,2]
[348917747,1736872282597,-773.5,0.00013253,2]
[348917748,1736872282609,-4764.34,0.00013253,2]
[348917749,1736872282618,-593.12,0.00013253,2]
[348917750,1736872282628,-1091.87,0.00013253,2]
[348917751,1736872282638,-804.34,0.00013253,2]
[348917752,1736872282647,-3004.08,0.00013253,2]
[348917753,1736872282657,-628.33,0.00013253,2]
[348917754,1736872282666,-721.13,0.00013253,2]
[348917755,1736872282676,-2906.87,0.00013253,2]
[348917756,1736872282685,-500.0,0.00013253,2]
[348917757,1736872282695,-6610.26,0.00013253,2]
[348917758,1736872282704,-500.0,0.00013253,2]
[348917759,1736872282714,-1597.69,0.00013253,2]
[348917760,1736872282724,-903.79,0.00013253,2]
[348917761,1736872282733,-500.0,0.00013253,2]
[348917762,1736872282743,-5191.48,0.00013253,2]
[348917763,1736872282753,-505.24,0.00013253,2]
[348917764,1736872282762,-1417.4,0.00013253,2]
[348917765,1736872282772,-1623.37,0.00013253,2]
[348917766,1736872282782,-500.0,0.00013253,2]
[348917767,1736872282791,-500.0,0.00013253,2]
[348917768,1736872282801,-903.24,0.00013253,2]
[348917769,1736872282810,-1969.17,0.00013253,2]
[348917770,1736872282820,-962.15,0.00013253,2]
[348917771,1736872282829,-932.49,0.00013253,2]
[348917772,1736872282838,-956.86,0.00013253,2]
[348917773,1736872282847,-1098.98,0.00013253,2]
[348917774,1736872282857,-500.0,0.00013253,2]
[348917775,1736872282866,-3822.97,0.00013253,2]
[348917776,1736872282875,-500.0,0.00013253,2]
[348917777,1736872282885,-572.49,0.00013253,2]
[348917778,1736872282895,-500.0,0.00013253,2]
[348917779,1736872282905,-2529.39,0.00013253,2]
[348917780,1736872282914,-764.12,0.00013253,2]
[348917781,1736872282923,-987.24,0.00013253,2]
[348917782,1736872282933,-500.0,0.00013253,2]
[348917783,1736872282942,-1889.58,0.00013253,2]
[348917784,1736872282952,-538.84,0.00013253,2]
[348917785,1736872282962,-500.0,0.00013253,2]
[348917786,1736872282972,-500.0,0.00013254,2]
[348917787,1736872282981,-500.0,0.00013254,2]
[348917788,1736872282991,-547.14,0.00013254,2]
[348917789,1736872283000,-500.0,0.00013254,2]
[348917790,1736872283009,-500.0,0.00013254,2]
[348917791,1736872283019,-500.0,0.00013254,2]
[348917792,1736872283029,-500.0,0.00013254,2]
[348917793,1736872283039,-500.0,0.00013254,2]
[348917794,1736872283049,-1451.36,0.00013254,2]
[348917795,1736872283058,-500.0,0.00013254,2]
[348917796,1736872283067,-1176.92,0.00013254,2]
[348917797,1736872283079,-1055.97,0.00013254,2]
[348917798,1736872283089,-500.0,0.00013254,2]
[348917799,1736872283098,-2317.71,0.00013254,2]
[348917800,1736872283108,-1470.32,0.00013254,2]
[348917801,1736872283118,-2492.01,0.00013254,2]
[348917802,1736872283128,-1795.2,0.00013254,2]
[348917803,1736872283138,-500.0,0.00013254,2]
[348917804,1736872283147,-500.0,0.00013255,2]
[348917805,1736872283157,-662.39,0.00013255,2]
[348917806,1736872283166,-3000.0,0.0001337,2]
[348917807,1736872283176,-366.77246987,0.00013419,2]
[348917808,1736872283185,-1272.04,0.00013419,2]
[348917809,1736872283195,-673.02,0.00013419,2]
[348917810,1736872283205,-1169.12,0.00013419,2]
[348917811,1736872283216,-1255.21,0.00013419,2]
[348917812,1736872283226,-1678.69,0.00013419,2]
[348917813,1736872283235,-3037.98,0.00013419,2]
[348917814,1736872283245,-875.97,0.00013419,2]
[348917815,1736872283256,-957.02,0.00013419,2]
[348917816,1736872283266,-1235.2,0.00013419,2]
[348917817,1736872283276,-1325.08,0.00013419,2]
[348917818,1736872283286,-2577.59,0.00013419,2]
[348917819,1736872283295,-1000.0,0.00013419,2]
[348917820,1736872283305,-2254.21,0.00013419,2]
[348917821,1736872283319,-490.215368,0.00013424,2]
[348917822,1736872283328,-1271.53,0.00013451,2]
[348917823,1736872283337,-1644.81,0.00013451,2]
[348917824,1736872283347,-1764.64,0.00013451,2]
[348917825,1736872283359,-1182.39,0.00013451,2]
[348917826,1736872283372,-2864.91,0.00013451,2]
[348917827,1736872283385,-2088.07,0.00013451,2]
[348917828,1736872283395,-3460.76,0.00013451,2]
[348917829,1736872283404,-3934.84,0.00013451,2]
[348917830,1736872283414,-1542.99,0.00013451,2]
[348917831,1736872283423,-4501.55,0.00013451,2]
[348917832,1736872283432,-231.282348,0.00013456,2]
[348917833,1736872283441,-231.282348,0.00013456,2]
[348917834,1736872283450,-151.0,0.00013456,2]
[348917835,1736872283459,-306.195203,0.00013456,2]
[348917836,1736872283468,-306.195203,0.00013456,2]
[348917837,1736872283477,-152.0,0.00013471,5]
[348917838,1736872283487,-1456.54324193,0.00013486,2]
[348917839,1736872283497,-157.21,0.00013497,2]
[348917840,1736872283506,-1000.0,0.000135,2]
[348917841,1736872283516,-176.4395938,0.00013518,2]
[348917842,1736872283525,-255.4455028,0.00013518,2]
[348917843,1736872283534,-486.47,0.00013518,2]
[348917844,1736872283543,-2340.78,0.0001352,2]
[348917845,1736872283553,-3843.52,0.0001352,2]
[348917846,1736872283562,-1528.57,0.0001352,2]
[348917847,1736872283572,-1660.46,0.0001352,2]
[348917848,1736872283581,-1123.89,0.0001352,2]
[348917849,1736872283591,-1056.44,0.0001352,2]
[348917850,1736872283601,-2582.46,0.00013526,2]
[348917851,1736872283610,-3766.22,0.00013526,2]
[348917852,1736872283620,-2301.61,0.00013526,2]
[348917853,1736872283629,-1547.57,0.00013526,2]
[348917854,1736872283638,-3820.79,0.00013526,2]
[348917855,1736872283647,-500.0,0.00013526,2]
[348917856,1736872283656,-1208.85,0.00013526,2]
[348917857,1736872283666,-1426.4,0.00013526,2]
[348917858,1736872283675,-500.0,0.00013527,2]
[348917859,1736872283685,-583.02,0.00013527,2]
[348917860,1736872283694,-714.03,0.00013527,2]
[348917861,1736872283704,-1181.5,0.00013527,2]
[348917862,1736872283714,-792.24,0.00013527,2]
[348917863,1736872283723,-1068.78,0.00013527,2]
[348917864,1736872283732,-866.79,0.00013527,2]
[348917865,1736872283742,-623.99226795,0.00013527,2]
[348917866,1736872283751,-602.0,0.00013527,2]
[348917867,1736872283760,-508.85,0.00013527,2]
[348917868,1736872283769,-634.25,0.00013527,2]
[348917869,1736872283779,-379.21374557,0.00013527,2]
[348917870,1736872284072,-500.0,0.00010238,2]
[348917871,1736872284085,-157.51625443,0.00013527,2]
[348917872,1736872284095,-692.74,0.00013527,2]
[348917873,1736872284104,-454.74374607,0.00013527,2]
[348917874,1736872284116,-457.15267895,0.00013527,2]
[348917875,1736872284127,-126.37357498,0.00013527,2]
[348917876,1736872284136,-516.91,0.00013527,2]
[348917877,1736872284147,-747.3,0.00013527,2]
[348917878,1736872284157,-500.0,0.00013527,2]
[348917879,1736872284166,-561.38,0.00013527,2]
[348917880,1736872284175,-848.03642502,0.00013527,2]
[348917881,1736872284190,-140.37357498,0.00013527,2]
[348917882,1736872284200,-171.94243252,0.00013527,2]
[348917883,1736872284840,-500.0,9.964e-05,2]
[348917884,1736872284849,-500.0,9.964e-05,2]
[348917885,1736872284859,-500.0,9.965e-05,2]
[348917886,1736872284868,-500.0,9.965e-05,2]
[348917887,1736872284878,-500.0,9.965e-05,2]
[348917888,1736872284888,-500.0,9.966e-05,2]
[348917889,1736872284897,-5274.39556957,9.972e-05,2]
[348917890,1736872284907,-1235.10443043,9.976e-05,2]
[348917891,1736872284918,-4039.29113914,9.976e-05,2]
[348917892,1736872284928,-3590.07001055,9.978e-05,2]
[348917893,1736872285092,-4.90675963,9.964e-05,2]
[348917894,1736872285104,-495.09324037,9.964e-05,2]
[348917895,1736872285114,-1684.32555902,9.978e-05,2]
[348917896,1736872285124,-5201.76481061,9.979e-05,2]
[348917897,1736872285135,-72.63075896,9.979e-05,2]
[348917898,1736872285144,-1190.21924104,9.983e-05,2]
[348917899,1736872285163,-4084.17632853,9.983e-05,2]
[348917900,1736872285173,-5274.39556957,9.988e-05,2]
[348917901,1736872285183,-500.0,0.00010238,2]
[348917902,1736872285192,-500.0,0.00010238,2]
[348917903,1736872285202,-500.0,0.00010239,2]
[348917904,1736872285212,-500.0,0.00010405,2]
[348917905,1736872285222,-522.49,0.00010512,2]
[348917906,1736872285232,-500.0,0.00010512,2]
[348917907,1736872285241,-500.0,0.00010512,2]
[348917908,1736872285250,-500.0,0.00010513,2]
[348917909,1736872285260,-1365.4,0.00010679,2]
[348917910,1736872285270,-500.0,0.00010679,2]
[348917911,1736872285279,-525.88853608,0.00010786,2]
[348917912,1736872285289,-500.0,0.00010786,2]
[348917913,1736872285299,-500.0,0.00010787,2]
[348917914,1736872285310,-1365.4,0.00010953,2]
[348917915,1736872285320,-500.0,0.00010953,2]
[348917916,1736872285335,-500.0,0.0001106,2]
[348917917,1736872285345,-1365.4,0.00011227,2]
[348917918,1736872285355,-2343.5,0.0001215,2]
[348917919,1736872285364,-4913.35,0.00012158,2]
[348917920,1736872285374,-2343.5,0.00012424,2]
[348917921,1736872285385,-4913.35,0.00012432,2]
[348917922,1736872285395,-2343.5,0.00012698,2]
[348917923,1736872285404,-4913.35,0.00012706,2]
[348917924,1736872285414,-509.39756748,0.00013527,2]
[348917925,1736872285424,-1790.56,0.00013527,2]
[348917926,1736872285432,-500.0,0.00013527,2]
[348917927,1736872285442,-500.0,0.00013527,2]
[348917928,1736872285452,-500.0,0.00013527,2]
[348917929,1736872285461,-797.39,0.00013527,2]
[348917930,1736872285471,-587.65320664,0.00013527,2]
[348917931,1736872285481,-778.29,0.00013527,2]
[348917932,1736872285491,-940.99,0.00013527,2]
[348917933,1736872285500,-666.0,0.00013527,2]
[348917934,1736872285509,-1006.25,0.00013527,2]
[348917935,1736872285519,-1229.29,0.00013527,2]
[348917936,1736872285528,-500.0,0.00013527,2]
[348917937,1736872285537,-976.73,0.00013527,2]
[348917938,1736872285548,-563.76,0.00013527,2]
[348917939,1736872285557,-1040.02,0.00013527,2]
[348917940,1736872285567,-1044.65,0.00013527,2]
[348917941,1736872285577,-747.75,0.00013527,2]
[348917942,1736872285590,-942.04,0.00013527,2]
[348917943,1736872285602,-1793.87,0.00013527,2]
[348917944,1736872285612,-1163.45,0.00013527,2]
[348917945,1736872285622,-500.0,0.00013527,2]
[348917946,1736872285631,-593.13,0.00013527,2]
[348917947,1736872285641,-431.56678138,0.00013527,2]
[348917948,1736872285650,-500.0,0.00013527,2]
[348917949,1736872285660,-1074.9,0.00013527,2]
[348917950,1736872285671,-1106.23,0.00013527,2]
[348917951,1736872285681,-1223.96,0.00013527,2]
[348917952,1736872285690,-2876.96,0.00013527,2]
[348917953,1736872285700,-941.53,0.00013527,2]
[348917954,1736872285709,-826.21,0.00013527,2]
[348917955,1736872285718,-713.39,0.00013527,2]
[348917956,1736872285729,-1982.6,0.00013527,2]
[348917957,1736872285739,-1061.78,0.00013527,2]
[348917958,1736872285749,-1269.8,0.00013527,2]
[348917959,1736872285758,-1071.15,0.00013527,2]
[348917960,1736872285768,-647.07,0.00013527,2]
[348917961,1736872285778,-1641.47,0.00013527,2]
[348917962,1736872285787,-1015.13304,0.00013527,2]
[348917963,1736872285797,-1061.21,0.00013527,2]
[348917964,1736872285807,-500.0,0.00013527,2]
[348917965,1736872285817,-850.59,0.00013527,2]
[348917966,1736872285827,-500.0,0.00013527,2]
[348917967,1736872285838,-4483.26,0.00013527,2]
[348917968,1736872285848,-1028.024937,0.00013527,2]
[348917969,1736872285857,-1008.96,0.00013527,2]
[348917970,1736872285867,-500.0,0.00013527,2]
[348917971,1736872285876,-1034.71,0.00013527,2]
[348917972,1736872285885,-856.72,0.00013527,2]
[348917973,1736872285895,-729.65,0.00013527,2]
[348917974,1736872285904,-807.27,0.00013527,2]
[348917975,1736872285913,-1242.21,0.00013527,2]
[348917976,1736872285923,-549.56063169,0.00013527,2]
[348917977,1736872285933,-1062.24,0.00013527,2]
[348917978,1736872285943,-942.52,0.00013527,2]
[348917979,1736872285952,-570.32,0.00013527,2]
[348917980,1736872285962,-957.09,0.00013527,2]
[348917981,1736872285971,-500.0,0.00013527,2]
[348917982,1736872285981,-500.0,0.00013527,2]
[348917983,1736872285991,-693.23,0.00013527,2]
[348917984,1736872286000,-3653.54,0.00013527,2]
[348917985,1736872286010,-583.72,0.00013527,2]
[348917986,1736872286019,-1575.62,0.00013527,2]
[348917987,1736872286028,-500.0,0.00013527,2]
[348917988,1736872286038,-3284.13,0.00013527,2]
[348917989,1736872286047,-1170.16,0.00013527,2]
[348917990,1736872286056,-10132.63,0.00013527,2]
[348917991,1736872286066,-775.45,0.00013527,2]
[348917992,1736872286075,-500.0,0.00013527,2]
[348917993,1736872286090,-1128.07,0.00013527,2]
[348917994,1736872286099,-500.0,0.00013527,2]
[348917995,1736872286108,-773.5,0.00013527,2]
[348917996,1736872286118,-593.12,0.00013527,2]
[348917997,1736872286127,-4764.34,0.00013527,2]
[348917998,1736872286137,-1091.87,0.00013527,2]
[348917999,1736872286147,-804.34,0.00013527,2]
[348918000,1736872286157,-3004.08,0.00013527,2]
[348918001,1736872286166,-628.33,0.00013527,2]
[348918002,1736872286175,-721.13,0.00013527,2]
[348918003,1736872286184,-2906.87,0.00013527,2]
[348918004,1736872286193,-321.60922247,0.00013527,2]
[348918005,1736872286203,-6610.26,0.00013527,2]
[348918006,1736872286213,-185.97364886,0.00013527,2]
[348918007,1736872286222,-1597.69,0.00013527,2]
[348918008,1736872286232,-903.79,0.00013527,2]
[348918009,1736872286242,-500.0,0.00013527,2]
[348918010,1736872286251,-5191.48,0.00013527,2]
[348918011,1736872286261,-505.24,0.00013527,2]
[348918012,1736872286272,-1417.4,0.00013527,2]
[348918013,1736872286282,-1623.37,0.00013527,2]
[348918014,1736872286292,-500.0,0.00013527,2]
[348918015,1736872286302,-502.65,0.00013527,2]
[348918016,1736872286314,-903.24,0.00013527,2]
[348918017,1736872286324,-1969.17,0.00013527,2]
[348918018,1736872286337,-962.15,0.00013527,2]
[348918019,1736872286346,-932.49,0.00013527,2]
[348918020,1736872286357,-956.86,0.00013527,2]
[348918021,1736872286366,-1098.98,0.00013527,2]
[348918022,1736872286375,-500.0,0.00013527,2]
[348918023,1736872286385,-3822.97,0.00013527,2]
[348918024,1736872286396,-500.0,0.00013527,2]
[348918025,1736872286406,-572.49,0.00013527,2]
[348918026,1736872286415,-500.0,0.00013527,2]
[348918027,1736872286424,-2529.39,0.00013527,2]
[348918028,1736872286434,-764.12,0.00013527,2]
[348918029,1736872286443,-987.24,0.00013527,2]
[348918030,1736872286452,-500.0,0.00013527,2]
[348918031,1736872286461,-1889.58,0.00013527,2]
[348918032,1736872286470,-538.84,0.00013527,2]
[348918033,1736872286480,-500.0,0.00013527,2]
[348918034,1736872286489,-500.0,0.00013528,2]
[348918035,1736872286498,-500.0,0.00013528,2]
[348918036,1736872286507,-547.14,0.00013528,2]
[348918037,1736872286517,-500.0,0.00013528,2]
[348918038,1736872286527,-551.99986276,0.00013528,2]
[348918039,1736872286536,-500.0,0.00013528,2]
[348918040,1736872286546,-500.0,0.00013528,2]
[348918041,1736872286556,-500.0,0.00013528,2]
[348918042,1736872286566,-1451.36,0.00013528,2]
[348918043,1736872286575,-500.0,0.00013528,2]
[348918044,1736872286587,-1176.92,0.00013528,2]
[348918045,1736872286598,-1055.97,0.00013528,2]
[348918046,1736872286608,-500.0,0.00013528,2]
[348918047,1736872286617,-2317.71,0.00013528,2]
[348918048,1736872286627,-1470.32,0.00013528,2]
[348918049,1736872286636,-2492.01,0.00013528,2]
[348918050,1736872286646,-1795.2,0.00013528,2]
[348918051,1736872286656,-604.19821341,0.00013528,2]
[348918052,1736872286666,-151.0,0.00013528,2]
[348918053,1736872286675,-500.0,0.00013529,2]
[348918054,1736872286684,-662.39,0.00013529,2]
[348918055,1736872286694,-1170.67769,0.00013529,2]
[348918056,1736872286703,-151.0,0.00013529,2]
[348918057,1736872286713,-1170.67769,0.00013529,2]
[348918058,1736872286723,-1462.648682,0.00013529,2]
[348918059,1736872286733,-1462.648682,0.00013529,2]
[348918060,1736872286743,-500.0,0.00013616,2]
[348918061,1736872286753,-1272.04,0.00013693,2]
[348918062,1736872286762,-673.02,0.00013693,2]
[348918063,1736872286772,-1169.12,0.00013693,2]
[348918064,1736872286782,-1255.21,0.00013693,2]
[348918065,1736872286791,-1678.69,0.00013693,2]
[348918066,1736872286801,-3037.98,0.00013693,2]
[348918067,1736872286811,-875.97,0.00013693,2]
[348918068,1736872286820,-957.02,0.00013693,2]
[348918069,1736872286830,-1235.2,0.00013693,2]
[348918070,1736872286840,-1325.08,0.00013693,2]
[348918071,1736872286850,-2577.59,0.00013693,2]
[348918072,1736872286859,-1000.0,0.00013693,2]
[348918073,1736872286869,-2254.21,0.00013693,2]
[348918074,1736872286879,-666.0,0.00013698,2]
[348918075,1736872286888,-500.0,0.00013698,2]
[348918076,1736872286899,-518.51610726,0.00013698,2]
[348918077,1736872286908,-3236.94,0.00013698,2]
[348918078,1736872286918,-3236.94,0.00013698,2]
[348918079,1736872286928,-3236.94,0.00013698,2]
[348918080,1736872286939,-3236.94,0.00013698,2]
[348918081,1736872286948,-3236.94,0.00013698,2]
[348918082,1736872286958,-3236.94,0.00013698,2]
[348918083,1736872286968,-3236.94,0.00013698,2]
[348918084,1736872286978,-3236.94,0.00013698,2]
[348918085,1736872286989,-3236.94,0.00013698,2]
[348918086,1736872286999,-3236.94,0.00013698,2]
[348918087,1736872287009,-3236.94,0.00013698,2]
[348918088,1736872287019,-3236.94,0.00013698,2]
[348918089,1736872287028,-3236.94,0.00013698,2]
[348918090,1736872287038,-3236.94,0.00013698,2]
[348918091,1736872287049,-1016.90511496,0.00013698,2]
[348918092,1736872287059,-517.67242191,0.00013698,2]
[348918093,1736872287226,-332.54238763,0.00013698,2]
[348918094,1736872287236,-151.0,0.00013698,2]
[348918095,1736872287247,-500.0,0.00013699,2]
[348918096,1736872287257,-500.0,0.00013699,2]
[348918097,1736872287266,-500.0,0.00013699,2]
[348918098,1736872287276,-500.0,0.00013699,2]
[348918099,1736872287286,-500.0,0.00013699,2]
[348918100,1736872287296,-500.0,0.00013699,2]
[348918101,1736872287306,-500.0,0.00013699,2]
[348918102,1736872287318,-500.0,0.00013699,2]
[348918103,1736872287328,-500.0,0.00013699,2]
[348918104,1736872287340,-500.0,0.00013699,2]
[348918105,1736872287351,-500.0,0.00013699,2]
[348918106,1736872287361,-500.0,0.00013699,2]
[348918107,1736872287371,-500.0,0.00013699,2]
[348918108,1736872287380,-500.0,0.00013699,2]
[348918109,1736872287390,-500.0,0.00013699,13]
[348918110,1736872287400,-500.0,0.00013699,13]
[348918111,1736872287410,-500.0,0.00013699,13]
[348918112,1736872287420,-500.0,0.00013699,13]
[348918113,1736872287430,-500.0,0.00013699,13]
[348918114,1736872287440,-500.0,0.00013699,13]
[348918115,1736872287450,-500.0,0.00013699,13]
[348918116,1736872287459,-500.0,0.00013699,13]
[348918117,1736872287470,-500.0,0.00013699,13]
[348918118,1736872287480,-500.0,0.00013699,13]
[348918119,1736872287489,-500.0,0.00013699,13]
[348918120,1736872287499,-500.0,0.00013699,13]
[348918121,1736872287509,-500.0,0.00013699,13]
[348918122,1736872287519,-500.0,0.00013699,13]
[348918123,1736872287528,-500.0,0.00013699,13]
[348918124,1736872287537,-500.0,0.00013699,13]
[348918125,1736872287546,-500.0,0.00013699,13]
[348918126,1736872287556,-500.0,0.00013699,13]
[348918127,1736872287565,-500.0,0.00013699,13]
[348918128,1736872287575,-500.0,0.00013699,13]
[348918129,1736872287586,-500.0,0.00013699,13]
[348918130,1736872287598,-500.0,0.00013699,13]
[348918131,1736872287607,-500.0,0.00013699,13]
[348918132,1736872287617,-500.0,0.00013699,13]
[348918133,1736872287626,-515.0,0.00013699,13]
[348918134,1736872287636,-200.0,0.00013699,2]
[348918135,1736872287646,-500.0,0.00013699,13]
[348918136,1736872287655,-3430.76,0.00013699,2]
[348918137,1736872287667,-500.0,0.00013699,13]
[348918138,1736872287677,-500.0,0.00013699,13]
[348918139,1736872287687,-500.0,0.00013699,13]
[348918140,1736872287697,-500.0,0.00013699,13]
[348918141,1736872287707,-500.0,0.00013699,13]
[348918142,1736872287717,-500.0,0.00013699,13]
[348918143,1736872287727,-500.0,0.00013699,13]
[348918144,1736872287737,-500.0,0.00013699,13]
[348918145,1736872287746,-500.0,0.00013699,13]
[348918146,1736872287755,-500.0,0.00013699,13]
[348918147,1736872287765,-500.0,0.00013699,13]
[348918148,1736872287775,-500.0,0.00013699,13]
[348918149,1736872287785,-500.0,0.00013699,13]
[348918150,1736872287795,-500.0,0.00013699,13]
[348918151,1736872287805,-500.0,0.00013699,13]
[348918152,1736872287814,-500.0,0.00013699,13]
[348918153,1736872287824,-500.0,0.00013699,13]
[348918154,1736872287834,-500.0,0.00013699,13]
[348918155,1736872287844,-500.0,0.00013699,13]
[348918156,1736872287854,-500.0,0.00013699,13]
[348918157,1736872287863,-500.0,0.00013699,13]
[348918158,1736872287873,-500.0,0.00013699,13]
[348918159,1736872287883,-500.0,0.00013699,13]
[348918160,1736872287894,-500.0,0.00013699,13]
[348918161,1736872287903,-500.0,0.00013699,13]
[348918162,1736872287914,-500.0,0.00013699,13]
[348918163,1736872287923,-500.0,0.00013699,13]
[348918164,1736872287933,-500.0,0.00013699,13]
[348918165,1736872287942,-500.0,0.00013699,13]
[348918166,1736872287952,-500.0,0.00013699,13]
[348918167,1736872287961,-500.0,0.00013699,13]
[348918168,1736872287971,-500.0,0.00013699,13]
[348918169,1736872287981,-500.0,0.00013699,13]
[348918170,1736872287991,-500.0,0.00013699,13]
[348918171,1736872288000,-500.0,0.00013699,13]
[348918172,1736872288009,-500.0,0.00013699,13]
[348918173,1736872288018,-500.0,0.00013699,13]
[348918174,1736872288029,-500.0,0.00013699,13]
[348918175,1736872288039,-500.0,0.00013699,13]
[348918176,1736872288051,-500.0,0.00013699,13]
[348918177,1736872288060,-265.0,0.00013699,13]
[348918178,1736872288070,-34846.16,0.00013699,2]
[348918179,1736872288080,-500.0,0.00013699,2]
[348918180,1736872288092,-10001.15,0.00013699,2]
[348918181,1736872288101,-41915.54,0.00013699,2]
[348918182,1736872288111,-300.96931863,0.00013699,2]
[348918183,1736872288122,-500.0,0.00013699,2]
[348918184,1736872288131,-500.0,0.00013699,2]
[348918185,1736872288141,-156.8769742,0.00013699,2]
[348918186,1736872288153,-500.0,0.00013699,2]
[348918187,1736872288162,-152.86823209,0.00013699,2]
[348918188,1736872288171,-500.0,0.00013699,2]
[348918189,1736872288181,-151.79949148,0.00013699,2]
[348918190,1736872288191,-150.87617963,0.00013699,2]
[348918191,1736872288201,-519.31360184,0.00013699,2]
[348918192,1736872288211,-159.90610846,0.00013699,2]
[348918193,1736872288221,-315.10619619,0.00013699,2]
[348918194,1736872288232,-151.77374758,0.00013699,2]
[348918195,1736872288242,-486.13976723,0.00013699,2]
[348918196,1736872288253,-323.29116824,0.00013699,2]
[348918197,1736872288264,-516.94878997,0.00013699,2]
[348918198,1736872288275,-151.77374758,0.00013699,2]
[348918199,1736872288285,-500.0,0.00013699,2]
[348918200,1736872288295,-515.8710133,0.00013699,2]
[348918201,1736872288306,-206.47960471,0.00013699,2]
[348918202,1736872288319,-500.0,0.00013699,2]
[348918203,1736872288329,-500.0,0.00013699,2]
[348918204,1736872288342,-151.0,0.00013699,2]
[348918205,1736872288353,-151.0,0.00013699,2]
[348918206,1736872288363,-151.0,0.00013699,2]
[348918207,1736872288372,-3495.232678,0.00013699,2]
[348918208,1736872288382,-3495.232678,0.00013699,2]
[348918209,1736872288393,-400.826018,0.00013699,2]
[348918210,1736872288402,-400.826018,0.00013699,2]
[348918211,1736872288412,-215.424164,0.00013699,2]
[348918212,1736872288422,-4825.284633,0.00013699,2]
[348918213,1736872288432,-4825.284633,0.00013699,2]
[348918214,1736872288442,-151.0,0.00013699,2]
[348918215,1736872288452,-576.87749,0.00013699,2]
[348918216,1736872288461,-576.87749,0.00013699,2]
[348918217,1736872288470,-419.331084,0.00013699,2]
[348918218,1736872288480,-419.331084,0.00013699,2]
[348918219,1736872288490,-233.424069,0.00013699,2]
[348918220,1736872288499,-617.55721,0.00013699,2]